bitfinex/quotes_ETHUSD_20250215
["timestamp","ask_amount","ask_price","bid_price","bid_amount"]
[1739617221376,3.6876,2711.8,2711.6,0.8035]
[1739617222255,7.37529,2711.8,2711.6,0.8035]
[1739617222462,3.68772,2711.7,2711.6,0.8035]
[1739617222663,3.68786,2711.6,2711.3,0.8035]
[1739617224262,3.68786,2711.6,2711.1,5.38]
[1739617224464,3.68813,2711.4,2711.1,6.1835]
[1739617224958,7.37635,2711.4,2711.1,6.1835]
[1739617226661,3.68813,2711.4,2711.1,6.1835]
[1739617226859,2.215,2711.3,2711.1,6.1835]
[1739617227274,3.6884,2711.2,2711.1,5.38]
[1739617230051,3.6884,2711.2,2710.8,0.8035]
[1739617231292,3.68868,2711.0,2710.8,0.8035]
[1739617232582,3.68881,2710.9,2710.6,6.2039]
[1739617232781,3.68863,2711.1,2710.6,10.882443]
[1739617233282,3.68867,2711.0,2710.6,7.193233]
[1739617235498,7.37745,2711.0,2710.6,6.2039]
[1739617235901,3.68881,2710.9,2710.6,6.2039]
[1739617236106,3.68905,2710.8,2710.6,0.8239]
[1739617236305,7.3781,2710.8,2710.4,6.2039]
[1739617236497,3.68918,2710.7,2710.4,0.8239]
[1739617238102,3.68918,2710.7,2710.2,9.06971]
[1739617238310,3.68918,2710.7,2710.2,10.428074]
[1739617239390,3.68905,2710.8,2710.2,10.428074]
[1739617239592,3.68903,2710.8,2710.2,10.428034]
[1739617240311,3.68915,2710.7,2710.2,10.428034]
[1739617240709,3.68903,2710.8,2710.2,6.738364]
[1739617240911,3.68926,2710.6,2710.2,6.738364]
[1739617242337,3.68911,2710.7,2710.2,10.428054]
[1739617242684,5.90403,2710.8,2710.2,6.738364]
[1739617242885,3.68923,2710.6,2710.2,6.738364]
[1739617243132,3.68923,2710.6,2710.2,5.38]
[1739617243328,3.6895,2710.4,2710.2,5.38]
[1739617246206,7.37907,2710.4,2710.2,5.38]
[1739617246746,3.6895,2710.4,2710.2,5.38]
[1739617247041,3.68962,2710.3,2710.2,5.38]
[1739617247194,3.68962,2710.3,2710.0,5.38]
[1739617248422,3.6895,2710.4,2710.0,5.91047097]
[1739617249412,0.8233,2710.5,2710.0,5.91047097]
[1739617249621,4.51276,2710.5,2710.0,9.60048097]
[1739617249791,3.68949,2710.4,2710.0,5.91047097]
[1739617250894,7.37908,2710.4,2710.0,5.91047097]
[1739617251227,3.68967,2710.3,2710.0,5.91047097]
[1739617252531,3.68949,2710.4,2710.0,5.91047097]
[1739617252726,3.68949,2710.4,2710.1,1.0354221]
[1739617253235,6.72767,2710.5,2710.1,1.0354221]
[1739617253598,5.90437,2710.5,2710.1,1.0354221]
[1739617254031,2.215,2710.5,2710.1,1.0354221]
[1739617255409,5.90439,2710.5,2710.1,1.0354221]
[1739617255717,2.215,2710.5,2710.1,1.0354221]
[1739617256453,5.90435,2710.5,2710.1,1.0354221]
[1739617257536,2.215,2710.5,2710.1,1.0354221]
[1739617258037,5.90442,2710.5,2710.1,1.0354221]
[1739617258204,5.90442,2710.5,2710.0,9.60041097]
[1739617259537,0.73463904,2710.6,2710.1,0.7558]
[1739617259836,2.215,2710.8,2710.4,0.7558]
[1739617261037,5.90384,2710.9,2710.4,4.44524]
[1739617261806,3.68896,2710.8,2710.4,0.7558]
[1739617262009,5.90384,2710.9,2710.4,5.796795]
[1739617262226,3.68896,2710.8,2710.4,0.7558]
[1739617262602,5.90384,2710.9,2710.4,0.7558]
[1739617262803,9.59278,2710.9,2710.4,0.7558]
[1739617263016,5.90384,2710.9,2710.4,0.7558]
[1739617263219,2.215,2710.9,2710.4,0.7558]
[1739617263545,9.59278,2710.9,2710.4,5.05877]
[1739617263843,5.90389,2710.9,2710.4,5.05877]
[1739617264538,3.68895,2710.8,2710.4,1.36938]
[1739617264744,3.68911,2710.7,2710.4,0.7558]
[1739617265040,4.49241,2710.7,2710.3,5.38]
[1739617265557,6.70741,2710.7,2710.3,5.38]
[1739617265729,2.215,2710.5,2710.0,0.7558]
[1739617265929,2.215,2710.5,2710.0,2.107419]
[1739617266550,3.68949,2710.4,2710.0,2.107419]
[1739617267575,3.68949,2710.4,2710.0,0.7558]
[1739617269076,5.90441,2710.5,2710.0,4.44581]
[1739617269551,2.215,2710.5,2710.0,0.7558]
[1739617269718,3.68957,2710.4,2710.0,0.7558]
[1739617269917,3.68957,2710.4,2709.9,5.38]
[1739617269918,8.18245,2710.4,2709.9,5.38]
[1739617270153,4.49287,2710.4,2709.9,5.38]
[1739617270350,8.18244,2710.4,2709.9,5.38]
[1739617270566,4.49287,2710.4,2709.9,5.38]
[1739617271048,8.13244,2710.4,2709.9,5.38]
[1739617271453,4.44287,2710.4,2709.9,5.38]
[1739617272358,3.68971,2710.3,2709.9,5.38]
[1739617273563,4.44287,2710.4,2709.9,9.07016]
[1739617273878,3.63957,2710.4,2709.9,13.742836]
[1739617274086,3.63957,2710.4,2709.9,10.052676]
[1739617275134,3.63957,2710.4,2709.9,6.362596]
[1739617275341,2.215,2710.2,2709.8,0.7558]
[1739617275741,5.90483,2710.2,2709.8,0.7558]
[1739617276851,3.68998,2710.1,2709.8,0.7558]
[1739617277043,3.68998,2710.1,2709.6,0.7964]
[1739617277239,3.69015,2710.0,2709.6,0.7964]
[1739617277564,5.90498,2710.1,2709.6,4.48697]
[1739617278967,9.59501,2710.1,2709.6,0.7964]
[1739617279160,3.69019,2709.9,2709.6,0.7964]
[1739617280030,6.972091,2710.1,2709.6,4.48686]
[1739617280231,5.90498,2710.1,2709.6,4.48686]
[1739617280838,9.59496,2710.1,2709.6,4.48686]
[1739617281163,5.90498,2710.1,2709.6,4.48686]
[1739617281569,5.90498,2710.1,2709.6,0.7964]
[1739617282470,3.69004,2710.0,2709.6,0.7964]
[1739617283638,2.215,2710.0,2709.6,0.7964]
[1739617283969,5.90504,2710.0,2709.6,0.7964]
[1739617284569,3.69034,2709.8,2709.3,0.7964]
[1739617284962,7.38076,2709.8,2709.3,0.7964]
[1739617285167,3.69034,2709.8,2709.3,0.7964]
[1739617286080,5.90534,2709.8,2709.3,0.7964]
[1739617286285,3.69045,2709.7,2709.3,0.7964]
[1739617287367,3.6906,2709.6,2709.3,0.7964]
[1739617290870,9.59578,2709.8,2709.3,0.7964]
[1739617291164,2.215,2709.7,2709.3,0.7964]
[1739617291380,5.90566,2709.6,2709.3,0.7964]
[1739617291561,5.90566,2709.6,2709.2,5.38]
[1739617291982,2.215,2709.6,2709.2,5.38]
[1739617292289,2.477,2709.8,2709.5,0.7845]
[1739617292990,2.215,2709.8,2709.5,0.7845]
[1739617293588,0.369,2710.2,2709.7,3.69044]
[1739617293792,0.262,2710.3,2709.8,0.7845]
[1739617293975,0.262,2710.3,2709.9,3.69014]
[1739617294176,4.4497,2710.4,2709.9,3.69014]
[1739617294356,0.262,2710.4,2709.9,3.69014]
[1739617294558,3.95152,2710.4,2709.9,3.69014]
[1739617294800,6.16652,2710.4,2709.9,3.69014]
[1739617295098,3.68972,2710.3,2709.8,0.7845]
[1739617295462,3.19978125,2710.4,2709.9,3.69014]
[1739617295682,2.477,2710.4,2709.9,3.69014]
[1739617295993,6.16649,2710.4,2709.9,3.69014]
[1739617296783,5.90449,2710.4,2709.9,3.69014]
[1739617297165,3.68978,2710.2,2709.8,0.7845]
[1739617297387,2.9752,2710.3,2709.8,0.7845]
[1739617297584,6.66491,2710.3,2709.8,0.7845]
[1739617297995,3.68991,2710.1,2709.8,0.7845]
[1739617298358,6.66491,2710.3,2709.8,0.7845]
[1739617298559,5.90478,2710.2,2709.8,0.7845]
[1739617298980,3.6899,2710.1,2709.8,0.7845]
[1739617299377,2.215,2710.2,2709.8,0.7845]
[1739617299675,3.69041,2709.8,2709.3,0.7845]
[1739617299871,2.9752,2709.9,2709.3,4.47535]
[1739617300102,3.69033,2709.8,2709.3,4.47535]
[1739617300557,3.69033,2709.8,2709.3,0.7845]
[1739617300756,3.69033,2709.8,2709.3,4.47547]
[1739617300961,3.69033,2709.8,2709.3,5.64587884]
[1739617304092,7.38074,2709.8,2709.3,1.95490884]
[1739617304339,3.69044,2709.7,2709.3,0.7845]
[1739617305400,5.90533,2709.8,2709.3,0.7845]
[1739617305582,3.6906,2709.6,2709.3,0.7845]
[1739617306189,5.90533,2709.8,2709.3,0.7845]
[1739617306372,3.69012,2710.0,2709.3,4.47535]
[1739617306373,5.90519,2709.9,2709.3,4.47535]
[1739617306574,5.90519,2709.9,2709.4,0.8181]
[1739617307585,2.215,2709.9,2709.4,0.8181]
[1739617307786,2.215,2709.9,2709.5,3.69064]
[1739617308114,2.215,2709.9,2709.6,0.8181]
[1739617309911,9.85667,2710.2,2709.7,4.50852]
[1739617310111,3.68993,2710.1,2709.7,0.8181]
[1739617310412,7.38024,2710.0,2709.7,0.8181]
[1739617310633,3.69011,2710.0,2709.7,0.8181]
[1739617310997,3.69024,2709.9,2709.7,0.8181]
[1739617311206,3.69024,2709.9,2709.6,5.38]
[1739617312202,3.69038,2709.8,2709.6,5.38]
[1739617313387,5.90544,2709.7,2709.6,5.38]
[1739617316122,6.73214,2709.7,2709.6,5.38]
[1739617316321,3.69074,2709.5,2709.1,0.8181]
[1739617316939,2.215,2709.6,2709.1,4.50933]
[1739617317341,2.215,2709.6,2709.1,0.8181]
[1739617317547,5.90567,2709.6,2709.1,0.8181]
[1739617318042,2.215,2709.6,2709.1,0.8181]
[1739617318258,2.215,2709.6,2709.1,1.807041]
[1739617318667,5.90558,2709.6,2709.1,1.807041]
[1739617318969,5.9056,2709.6,2709.1,5.498201]
[1739617320055,2.215,2709.6,2709.1,5.498201]
[1739617320255,2.215,2709.6,2709.1,0.8181]
[1739617320461,3.69075,2709.5,2709.1,0.8181]
[1739617320941,2.215,2709.6,2709.1,4.50928]
[1739617320942,5.90565,2709.6,2709.1,4.50928]
[1739617321641,3.69073,2709.5,2709.1,0.8181]
[1739617322134,2.215,2709.6,2709.2,3.69104]
[1739617322338,2.215,2709.8,2709.1,0.8181]
[1739617322572,5.90558,2709.6,2709.1,4.50927]
[1739617323578,2.215,2709.6,2709.1,0.8181]
[1739617323796,7.50181,2710.2,2709.0,3.69131]
[1739617323797,6.1108,2710.3,2709.4,3.50052113]
[1739617324087,3.95183,2710.2,2709.7,0.7724]
[1739617324243,5.31,2710.3,2709.7,0.7724]
[1739617324244,5.31,2710.3,2709.8,3.69028]
[1739617324444,8.99964,2710.3,2709.8,3.69028]
[1739617324641,5.679,2710.3,2709.7,0.7724]
[1739617324951,2.215,2710.2,2709.8,3.69029]
[1739617325153,5.90478,2710.2,2709.7,0.7724]
[1739617325346,5.90478,2710.2,2709.7,4.46279]
[1739617325947,2.215,2710.2,2709.7,4.46279]
[1739617326881,5.90478,2710.2,2709.7,0.7724]
[1739617327858,3.6899,2710.1,2709.7,0.7724]
[1739617328185,3.69009,2710.0,2709.7,0.7724]
[1739617328393,2.215,2710.0,2709.5,5.38]
[1739617328563,3.69045,2709.7,2709.5,5.38]
[1739617328763,10.39681,2709.7,2709.5,5.38]
[1739617328990,6.70625,2709.7,2709.5,5.38]
[1739617329158,7.745896,2709.7,2709.5,5.38]
[1739617329363,3.69058,2709.6,2709.5,5.38]
[1739617331990,6.945096,2709.7,2709.5,6.1524]
[1739617332161,2.215,2709.8,2709.5,6.1524]
[1739617332362,5.90532,2709.8,2709.5,6.1524]
[1739617332556,2.215,2709.8,2709.5,6.1524]
[1739617332863,5.90538,2709.8,2709.5,6.1524]
[1739617333063,3.69045,2709.7,2709.5,6.1524]
[1739617333262,3.69058,2709.6,2709.5,5.38]
[1739617333501,4.47328,2709.6,2709.5,5.38]
[1739617333990,4.47328,2709.6,2709.1,5.38]
[1739617334364,0.7827,2709.6,2709.1,5.38]
[1739617334571,3.69045,2709.7,2709.3,0.7971]
[1739617335375,2.9977,2709.8,2709.3,0.7971]
[1739617335695,6.68805,2709.8,2709.3,0.7971]
[1739617336100,3.69047,2709.7,2709.3,0.7971]
[1739617338294,3.69058,2709.6,2709.3,0.7971]
[1739617339096,3.69058,2709.6,2709.1,6.1771]
[1739617339287,3.69058,2709.6,2709.1,7.43538279]
[1739617340206,3.69058,2709.6,2709.1,11.12663279]
[1739617340984,3.69058,2709.6,2709.1,7.43538279]
[1739617341870,5.90547,2709.7,2709.1,7.43538279]
[1739617342083,0.369,2709.6,2709.1,11.12652279]
[1739617342407,5.90547,2709.7,2709.2,5.17289028]
[1739617342582,2.215,2709.7,2709.3,3.69098]
[1739617342779,5.90544,2709.7,2709.2,5.17289028]
[1739617343003,5.90544,2709.7,2709.2,5.17282028]
[1739617343368,5.90544,2709.7,2709.2,8.86387028]
[1739617343572,5.90544,2709.7,2709.2,8.86385028]
[1739617344011,5.90544,2709.7,2709.2,5.17281028]
[1739617345721,5.90544,2709.7,2709.2,1.48178028]
[1739617346712,5.90544,2709.7,2709.2,5.17289028]
[1739617347707,2.215,2709.8,2709.4,0.8076]
[1739617348004,5.90505,2710.0,2709.4,4.49836]
[1739617349214,3.69018,2709.9,2709.4,4.49836]
[1739617349518,2.215,2710.0,2709.4,4.49836]
[1739617350417,3.69018,2709.9,2709.4,4.49836]
[1739617350612,2.215,2710.0,2709.4,4.49836]
[1739617350823,5.9051,2710.0,2709.6,0.8076]
[1739617351007,3.69019,2709.9,2709.6,0.8076]
[1739617351318,2.215,2710.0,2709.6,0.8076]
[1739617352527,5.90511,2710.0,2709.6,0.8076]
[1739617353923,3.6902,2709.9,2709.6,0.8076]
[1739617354222,3.6902,2709.9,2709.4,4.49835]
[1739617354587,3.6902,2709.9,2709.4,6.00346503]
[1739617358325,7.38048,2709.9,2709.4,6.00346503]
[1739617359027,3.6902,2709.9,2709.4,6.00346503]
[1739617359530,5.90537,2709.8,2709.4,0.8076]
[1739617362513,3.69045,2709.7,2709.4,0.8076]
[1739617362690,6.73837,2709.8,2709.4,0.8076]
[1739617363093,3.69045,2709.7,2709.4,0.8076]
[1739617363426,6.73837,2709.8,2709.4,0.8076]
[1739617363932,3.69046,2709.7,2709.4,0.8076]
[1739617364106,6.73832,2709.8,2709.4,0.8076]
[1739617364494,5.90532,2709.8,2709.4,0.8076]
[1739617365029,5.90531,2709.8,2709.4,0.8076]
[1739617367298,2.215,2709.8,2709.4,4.49838]
[1739617367498,2.215,2709.8,2709.4,0.8076]
[1739617368400,5.90532,2709.8,2709.4,0.8076]
[1739617371836,3.69053,2709.7,2709.4,0.8076]
[1739617373035,5.90532,2709.8,2709.4,0.8076]
[1739617373206,4.280972,2709.7,2709.3,5.38]
[1739617374337,3.69044,2709.7,2709.3,5.38]
[1739617374513,7.38097,2709.7,2709.3,5.38]
[1739617374923,3.69044,2709.7,2709.3,5.38]
[1739617376226,7.38098,2709.7,2709.3,5.38]
[1739617376403,3.69044,2709.7,2709.3,5.38]
[1739617378440,7.38099,2709.7,2709.3,5.38]
[1739617378624,3.69044,2709.7,2709.3,5.38]
[1739617378831,3.69061,2709.6,2709.3,5.38]
[1739617379453,3.68138355,2709.6,2709.3,5.38]
[1739617380138,3.69072,2709.5,2709.3,5.38]
[1739617381337,7.38151,2709.5,2709.3,5.38]
[1739617382038,3.69072,2709.5,2709.3,5.38]
[1739617382542,7.38152,2709.5,2709.3,5.38]
[1739617383107,3.69072,2709.5,2709.3,5.38]
[1739617383307,2.215,2709.6,2709.3,5.38]
[1739617383846,5.90558,2709.6,2709.3,5.38]
[1739617384543,5.90558,2709.6,2709.2,4.5107]
[1739617384733,5.90558,2709.6,2709.2,0.8196]
[1739617385042,2.215,2709.6,2709.2,4.51071]
[1739617385440,5.90558,2709.6,2709.2,4.51071]
[1739617386314,5.90558,2709.6,2709.2,0.8196]
[1739617386649,3.69071,2709.5,2709.2,0.8196]
[1739617386831,3.69071,2709.5,2709.0,2.48441782]
[1739617388278,2.215,2709.5,2709.0,2.48441782]
[1739617388479,3.69107,2709.3,2709.0,0.7843]
[1739617389342,5.90594,2709.4,2709.0,0.7843]
[1739617390587,9.59688,2709.4,2709.0,0.7843]
[1739617390757,2.215,2709.3,2708.8,2.48441782]
[1739617390926,3.69119,2709.2,2708.8,3.4020456]
[1739617391748,2.215,2709.3,2708.8,3.4020456]
[1739617391929,5.90599,2709.3,2708.8,7.0936256]
[1739617392128,3.69114,2709.2,2708.8,3.4020456]
[1739617395196,3.69114,2709.2,2708.8,2.48441782]
[1739617395489,3.69114,2709.2,2708.8,0.7843]
[1739617396598,6.7344,2709.3,2708.8,6.17607782]
[1739617397143,6.7344,2709.3,2708.8,2.48441782]
[1739617398654,6.7344,2709.3,2708.8,6.17607782]
[1739617401582,3.6912,2709.2,2708.8,2.48441782]
[1739617401982,3.6912,2709.2,2708.8,0.7843]
[1739617402178,3.6912,2709.2,2708.8,2.48441782]
[1739617403182,5.90646,2709.0,2708.6,0.8068]
[1739617403383,5.90646,2709.0,2708.5,5.38]
[1739617403384,5.90654,2708.9,2708.5,5.38]
[1739617405488,3.69168,2708.8,2708.5,5.38]
[1739617405648,7.38347,2708.8,2708.5,5.38]
[1739617405853,3.69168,2708.8,2708.5,5.38]
[1739617407191,7.38348,2708.8,2708.5,5.38]
[1739617407489,3.69187,2708.7,2708.5,5.38]
[1739617407677,3.69187,2708.7,2708.2,11.52270782]
[1739617410500,4.50967,2708.6,2708.2,7.83031782]
[1739617412030,3.69197,2708.6,2708.2,7.83031782]
[1739617412211,3.69181,2708.7,2708.4,1.70011782]
[1739617412501,10.41614,2708.8,2708.4,1.70011782]
[1739617413279,5.90668,2708.8,2708.4,1.70011782]
[1739617413480,2.215,2708.8,2708.6,1.70011782]
[1739617413884,5.90667,2708.8,2708.6,1.70011782]
[1739617414679,5.90667,2708.8,2708.5,0.7502]
[1739617415982,3.6918,2708.7,2708.5,0.7502]
[1739617416204,3.6918,2708.7,2708.4,1.70011782]
[1739617418413,5.90674,2708.8,2708.4,1.70011782]
[1739617419092,9.59849,2708.8,2708.4,1.70011782]
[1739617419409,5.90674,2708.8,2708.4,1.70011782]
[1739617420522,2.215,2708.8,2708.4,5.39231782]
[1739617420718,2.215,2708.8,2708.5,0.7502]
[1739617422220,5.90667,2708.8,2708.5,0.7502]
[1739617422417,2.215,2708.8,2708.5,0.7502]
[1739617422622,5.90667,2708.8,2708.5,0.7502]
[1739617423727,0.85821097,2709.2,2708.7,4.51259]
[1739617423728,0.8095,2709.2,2708.7,4.51259]
[1739617423944,4.06006,2709.3,2709.0,1.70011782]
[1739617424086,4.06006,2709.3,2708.8,1.70011782]
[1739617424592,3.6914,2709.0,2708.7,0.8209]
[1739617425407,3.6914,2709.0,2708.6,5.38]
[1739617425408,2.215,2708.8,2708.6,5.38]
[1739617426116,5.90668,2708.8,2708.6,5.38]
[1739617428028,2.215,2708.9,2708.6,7.08011782]
[1739617428827,4.06002,2709.3,2708.8,5.39177782]
[1739617429030,0.369,2709.3,2708.9,0.8209]
[1739617429193,0.262,2709.5,2709.2,1.70011782]
[1739617429393,7.38131,2709.6,2709.3,0.8209]
[1739617429699,2.215,2709.6,2709.3,0.8209]
[1739617430892,5.90559,2709.6,2709.3,0.8209]
[1739617431396,3.69076,2709.5,2709.3,0.8209]
[1739617433043,5.90559,2709.6,2709.3,0.8209]
[1739617433348,2.215,2709.6,2709.3,0.8209]
[1739617434499,4.05945,2709.7,2709.3,4.962975]
[1739617434500,0.369,2709.7,2709.3,4.962975]
[1739617435231,0.369,2709.7,2709.4,3.6908]
[1739617435421,0.369,2709.7,2709.3,4.962975]
[1739617435623,0.369,2709.7,2709.3,8.653855]
[1739617435821,0.369,2709.7,2709.4,3.69082]
[1739617436029,2.584,2709.8,2709.4,3.69082]
[1739617436436,0.369,2709.8,2709.4,3.69082]
[1739617437241,0.369,2709.9,2709.4,3.69082]
[1739617437443,3.69011,2710.0,2709.6,0.8209]
[1739617438447,3.6902,2709.9,2709.6,0.8209]
[1739617438739,4.05941,2710.0,2709.6,0.8209]
[1739617440167,7.74957,2710.0,2709.6,0.8209]
[1739617440367,3.6903,2709.9,2709.6,0.8209]
[1739617440570,4.05941,2710.0,2709.6,0.8209]
[1739617440747,3.69011,2710.0,2709.6,0.8209]
[1739617440949,0.262,2710.1,2709.7,3.69039]
[1739617441130,0.262,2710.2,2709.8,4.46477]
[1739617442123,3.68958,2710.4,2709.8,4.46477]
[1739617442325,0.262,2710.4,2709.8,4.46477]
[1739617442558,0.262,2710.4,2710.0,3.68996]
[1739617442753,0.262,2710.4,2710.0,4.505433]
[1739617443870,4.0586,2710.6,2710.0,4.505433]
[1739617444584,4.79730913,2710.6,2710.2,0.7746]
[1739617445171,3.68903,2710.8,2710.2,0.7746]
[1739617445342,3.68915,2710.7,2710.2,4.46434]
[1739617446224,3.68903,2710.8,2710.2,0.7746]
[1739617446424,2.215,2710.7,2710.2,0.7746]
[1739617446870,2.215,2710.7,2710.2,4.46431]
[1739617447227,2.215,2710.7,2710.2,2.02228549]
[1739617447429,2.215,2710.7,2710.3,3.6896]
[1739617447663,2.215,2710.7,2710.2,2.02228549]
[1739617447845,2.215,2710.7,2710.2,0.7746]
[1739617448047,2.215,2710.7,2710.2,4.46428]
[1739617448276,2.215,2710.7,2710.3,3.68959]
[1739617448982,5.90413,2710.7,2710.2,4.46433]
[1739617450381,2.215,2710.7,2710.3,3.6896]
[1739617450535,5.90416,2710.7,2710.2,0.7746]
[1739617450730,3.68928,2710.6,2710.2,0.7746]
[1739617451670,2.215,2710.7,2710.2,0.7746]
[1739617451961,2.215,2710.7,2710.2,4.46435]
[1739617452162,5.90409,2710.7,2710.2,0.7746]
[1739617452865,5.90409,2710.7,2710.2,4.46434]
[1739617453536,2.215,2710.7,2710.3,3.68953]
[1739617453970,2.215,2710.7,2710.2,0.7746]
[1739617454170,5.9041,2710.7,2710.2,5.88101849]
[1739617457660,5.9041,2710.7,2710.3,1.69895659]
[1739617459448,9.5933,2710.7,2710.3,1.69895659]
[1739617459661,5.9041,2710.7,2710.3,1.69895659]
[1739617460370,2.215,2710.8,2710.3,5.38844659]
[1739617460573,2.215,2710.8,2710.4,0.75797651]
[1739617460739,5.90403,2710.8,2710.4,0.75797651]
[1739617461441,5.90415,2710.7,2710.4,0.75797651]
[1739617462977,2.215,2710.8,2710.4,0.75797651]
[1739617463146,5.90414,2710.7,2710.3,1.69895659]
[1739617463353,3.68914,2710.7,2710.3,1.69895659]
[1739617463541,5.90414,2710.7,2710.3,1.69895659]
[1739617463941,2.215,2710.7,2710.3,1.69895659]
[1739617464153,2.215,2710.7,2710.3,5.38850659]
[1739617465961,5.90409,2710.7,2710.4,0.75798251]
[1739617466954,2.215,2710.8,2710.4,0.75798251]
[1739617467652,2.215,2710.8,2710.6,0.7994]
[1739617469789,2.215,2710.9,2710.7,1.69895659]
[1739617469992,2.215,2710.9,2710.8,0.24983566]
[1739617470292,3.68867,2711.0,2710.8,0.24983566]
[1739617471371,3.6886,2711.1,2710.8,0.24983566]
[1739617471572,2.9834,2711.3,2710.9,1.69895659]
[1739617471774,5.90348,2711.2,2710.9,1.69895659]
[1739617471974,9.592,2711.2,2710.9,1.89383582]
[1739617472173,3.68867,2711.0,2710.9,1.89383582]
[1739617473700,3.68867,2711.0,2710.9,0.19487923]
[1739617473862,3.68867,2711.0,2710.8,0.24983566]
[1739617474959,3.68881,2710.9,2710.8,0.24983566]
[1739617475178,3.68906,2710.8,2710.5,7.07895659]
[1739617475467,4.51341,2710.9,2710.5,7.07895659]
[1739617475887,0.8246,2710.9,2710.5,10.76827659]
[1739617476086,3.68881,2710.9,2710.5,7.07895659]
[1739617476301,3.68897,2710.8,2710.5,7.07895659]
[1739617476597,3.68897,2710.8,2710.6,0.86567391]
[1739617476796,3.68881,2710.9,2710.6,0.86567391]
[1739617477796,2.215,2711.0,2710.6,0.86567391]
[1739617478001,3.68902,2710.8,2710.6,0.86567391]
[1739617478389,3.68885,2710.9,2710.6,0.86567391]
[1739617478568,3.68905,2710.8,2710.5,7.07895659]
[1739617478773,4.51375,2710.7,2710.5,5.38]
[1739617479102,3.68922,2710.6,2710.5,5.38]
[1739617479815,3.68936,2710.5,2710.1,7.89875659]
[1739617480221,3.68957,2710.4,2710.1,7.07895659]
[1739617480820,3.68965,2710.3,2710.1,7.07895659]
[1739617481719,3.68965,2710.3,2710.1,5.38]
[1739617482217,3.68965,2710.3,2709.7,15.94530908]
[1739617482218,0.8246,2710.2,2709.7,9.70470908]
[1739617482521,0.8246,2710.2,2709.8,1.33952191]
[1739617482688,0.8246,2710.2,2709.7,6.1998]
[1739617482689,3.0396,2710.2,2709.7,6.1998]
[1739617482886,3.6903,2709.8,2709.7,5.38]
[1739617483092,4.5082,2709.8,2709.7,5.38]
[1739617485504,3.69052,2709.7,2709.4,0.7783]
[1739617485932,2.215,2710.1,2709.6,0.7783]
[1739617486113,4.5077,2710.2,2709.7,3.69044]
[1739617486318,4.50747,2710.4,2709.7,10.88568908]
[1739617486516,4.76947,2710.4,2709.8,3.69029]
[1739617486800,4.76947,2710.4,2709.9,0.7783]
[1739617486801,3.95157,2710.4,2709.9,0.7783]
[1739617487001,0.262,2710.4,2710.0,3.95176808]
[1739617487260,0.262,2710.4,2710.1,4.46816]
[1739617487440,0.262,2710.4,2710.1,0.7783]
[1739617488716,5.90403,2710.8,2710.1,4.46808]
[1739617489039,5.90403,2710.8,2710.1,3.68978]
[1739617489207,5.90403,2710.8,2710.2,5.23215481]
[1739617490231,3.68903,2710.8,2710.2,5.23215481]
[1739617490845,3.68903,2710.8,2710.3,3.6896]
[1739617491146,3.68858,2711.1,2710.6,0.7783]
[1739617491927,3.68868,2711.0,2710.6,0.7783]
[1739617492112,3.68885,2710.9,2710.6,0.7783]
[1739617492509,3.68899,2710.8,2710.6,0.7783]
[1739617492709,3.68885,2710.9,2710.6,0.7783]
[1739617493213,3.68901,2710.8,2710.6,0.7783]
[1739617493410,3.68901,2710.8,2710.4,0.7594]
[1739617494440,3.68909,2710.7,2710.4,0.7594]
[1739617495320,3.68885,2710.9,2710.4,5.32063239]
[1739617495843,7.37776,2710.9,2710.4,1.63122239]
[1739617496049,3.68894,2710.8,2710.4,1.53202239]
[1739617496215,3.68894,2710.8,2710.4,0.6602]
[1739617496543,7.37808,2710.8,2710.4,0.6602]
[1739617496757,3.68903,2710.8,2710.4,0.6602]
[1739617496935,3.68922,2710.6,2710.4,0.6602]
[1739617497752,3.68922,2710.6,2710.1,9.06987]
[1739617499072,3.68922,2710.6,2710.2,0.8113]
[1739617500239,4.48629,2710.8,2710.2,4.50097]
[1739617500439,4.48629,2710.8,2710.2,5.92113759]
[1739617500637,4.49899,2711.0,2710.4,3.68949]
[1739617501375,4.49899,2711.0,2710.3,3.50490908]
[1739617501651,3.68867,2711.0,2710.6,0.8113]
[1739617501861,5.90367,2711.0,2710.6,0.8113]
[1739617502066,9.59243,2711.0,2710.6,0.8113]
[1739617502453,5.90367,2711.0,2710.6,0.8113]
[1739617503453,2.215,2711.0,2710.6,0.8113]
[1739617503659,5.90367,2711.0,2710.6,0.8113]
[1739617504078,6.71378,2711.2,2710.6,0.8113]
[1739617504245,0.8103,2711.5,2711.0,4.49994]
[1739617504445,1.0723,2711.7,2711.0,0.8113]
[1739617504677,3.68821,2711.4,2711.0,0.8113]
[1739617504874,3.68828,2711.3,2711.0,0.8113]
[1739617505062,3.68852,2711.2,2710.7,0.8113]
[1739617505376,4.49858,2711.3,2710.7,5.83889391]
[1739617505742,3.68841,2711.2,2710.7,5.83889391]
[1739617505949,3.68854,2711.1,2710.7,0.8113]
[1739617506159,5.90375,2711.0,2710.6,5.38]
[1739617506988,5.90391,2710.9,2710.6,5.38]
[1739617507159,5.90391,2710.9,2710.5,0.8113]
[1739617507484,3.68895,2710.8,2710.5,0.8113]
[1739617507786,3.68916,2710.7,2710.3,0.8113]
[1739617507985,2.215,2710.8,2710.3,0.8113]